[Event "*** Titled Tuesday Blitz"]
[Site "Chess.com"]
[Date "2018.08.07"]
[Round "2"]
[White "murmah2003"]
[Black "keisyzrk"]
[Result "0-1"]
[WhiteElo "2563"]
[BlackElo "2292"]
[TimeControl "180+2"]
[EndTime "13:21:36 PDT"]
[Termination "keisyzrk won by resignation"]

1. d4 {[%clk 0:03:01.9]} 1... Nf6 {[%clk 0:02:56.8]} 2. c4 {[%clk 0:03:02.4]}
2... g6 {[%clk 0:02:55.9]} 3. Nc3 {[%clk 0:03:03.5]} 3... d5 {[%clk 0:02:54.5]}
4. Bg5 {[%clk 0:03:03.3]} 4... Ne4 {[%clk 0:02:53.7]} 5. Bh4 {[%clk 0:03:04]}
5... Nxc3 {[%clk 0:02:54]} 6. bxc3 {[%clk 0:03:05.9]} 6... Bg7 {[%clk
0:02:54.2]} 7. e3 {[%clk 0:03:03.6]} 7... c5 {[%clk 0:02:40.5]} 8. Nf3 {[%clk
0:02:54.7]} 8... Nc6 {[%clk 0:02:38.7]} 9. cxd5 {[%clk 0:02:52.7]} 9... Qxd5
{[%clk 0:02:39.5]} 10. Be2 {[%clk 0:02:54.2]} 10... O-O {[%clk 0:02:39.4]} 11.
O-O {[%clk 0:02:53.9]} 11... cxd4 {[%clk 0:02:37.4]} 12. cxd4 {[%clk 0:02:53.7]}
12... e5 {[%clk 0:02:33.9]} 13. dxe5 {[%clk 0:02:43.2]} 13... Qxd1 {[%clk
0:02:33.7]} 14. Rfxd1 {[%clk 0:02:37]} 14... Nxe5 {[%clk 0:02:34.4]} 15. Nxe5
{[%clk 0:02:38.9]} 15... Bxe5 {[%clk 0:02:35.3]} 16. Rab1 {[%clk 0:02:40.8]}
16... b6 {[%clk 0:02:35.5]} 17. f4 {[%clk 0:02:26.4]} 17... Bg7 {[%clk
0:02:32.9]} 18. Bf3 {[%clk 0:02:20]} 18... Bf5 {[%clk 0:02:32.7]} 19. e4 {[%clk
0:01:49.5]} 19... Be6 {[%clk 0:02:33.3]} 20. a3 {[%clk 0:01:27.9]} 20... Rfc8
{[%clk 0:02:23.4]} 21. e5 {[%clk 0:01:27.2]} 21... Rab8 {[%clk 0:02:23.5]} 22.
Be7 {[%clk 0:01:19.6]} 22... Bf8 {[%clk 0:02:20.2]} 23. Bd6 {[%clk 0:01:18.8]}
23... Bxd6 {[%clk 0:02:16.1]} 24. exd6 {[%clk 0:01:20.7]} 24... Rd8 {[%clk
0:02:14.2]} 25. Rbc1 {[%clk 0:00:48.8]} 25... b5 {[%clk 0:02:14.4]} 26. Kf2
{[%clk 0:00:18.8]} 26... a5 {[%clk 0:02:15.2]} 27. Rd4 {[%clk 0:00:19.6]} 27...
b4 {[%clk 0:02:15.8]} 28. axb4 {[%clk 0:00:21.5]} 28... axb4 {[%clk 0:02:16.9]}
29. Ke3 {[%clk 0:00:21.2]} 29... b3 {[%clk 0:02:18]} 30. Rb1 {[%clk 0:00:22.1]}
30... b2 {[%clk 0:02:12.2]} 31. Kd2 {[%clk 0:00:22.2]} 31... Ba2 {[%clk
0:02:02.6]} 32. Be4 {[%clk 0:00:10]} 32... Bxb1 {[%clk 0:02:02.2]} 33. Bxb1
{[%clk 0:00:11.9]} 33... Rb6 {[%clk 0:02:03.7]} 34. d7 {[%clk 0:00:04.8]} 34...
Rb7 {[%clk 0:02:04.5]} 35. Be4 {[%clk 0:00:05]} 35... Rdxd7 {[%clk 0:02:04.5]}
36. Rxd7 {[%clk 0:00:06.9]} 36... Rxd7+ {[%clk 0:02:05.2]} 37. Kc2 {[%clk
0:00:08.3]} 37... Re7 {[%clk 0:02:06.5]} 38. Bf3 {[%clk 0:00:04.6]} 38... Rc7+
{[%clk 0:02:03.4]} 39. Kxb2 {[%clk 0:00:05.9]} 39... Kg7 {[%clk 0:02:04.9]} 40.
Kb3 {[%clk 0:00:05.7]} 40... Kf6 {[%clk 0:02:06]} 41. Be4 {[%clk 0:00:07.1]}
41... Ke6 {[%clk 0:02:06.6]} 42. g3 {[%clk 0:00:07.7]} 42... Kd6 {[%clk
0:02:07.2]} 43. Kb2 {[%clk 0:00:07.6]} 43... Kc5 {[%clk 0:02:07.3]} 44. Kc3
{[%clk 0:00:08.1]} 44... Re7 {[%clk 0:02:06.3]} 45. Kd3 {[%clk 0:00:08.2]} 45...
Kd6 {[%clk 0:02:03.9]} 46. Bf3 {[%clk 0:00:07]} 46... Ra7 {[%clk 0:02:04.2]} 47.
Ke3 {[%clk 0:00:07.4]} 47... Ra2 {[%clk 0:02:04.4]} 48. h3 {[%clk 0:00:04.1]}
48... Kc5 {[%clk 0:02:04.5]} 49. Be4 {[%clk 0:00:03.2]} 49... f5 {[%clk
0:02:04.1]} 50. Bf3 {[%clk 0:00:04.2]} 50... Ra3+ {[%clk 0:02:05.2]} 51. Kf2
{[%clk 0:00:04.9]} 51... Kd4 {[%clk 0:02:06.8]} 52. g4 {[%clk 0:00:04.6]} 52...
Ra2+ {[%clk 0:02:06.8]} 53. Kg3 {[%clk 0:00:05.4]} 53... Ke3 {[%clk 0:02:08]}
54. gxf5 {[%clk 0:00:03.6]} 54... gxf5 {[%clk 0:02:08.9]} 55. Bd5 {[%clk
0:00:03.3]} 55... Ra4 {[%clk 0:02:02.8]} 56. Bg8 {[%clk 0:00:03.7]} 56... h6
{[%clk 0:02:03.5]} 0-1

[Event "*** Titled Tuesday Blitz"]
[Site "Chess.com"]
[Date "2018.08.07"]
[Round "2"]
[White "CookiesAndIceCream"]
[Black "MaxLeto"]
[Result "1-0"]
[WhiteElo "2261"]
[BlackElo "2388"]
[TimeControl "180+2"]
[EndTime "13:21:39 PDT"]
[Termination "CookiesAndIceCream won by checkmate"]

1. e4 {[%clk 0:03:01.1]} 1... c5 {[%clk 0:02:52.4]} 2. Nf3 {[%clk 0:03:02.3]}
2... d6 {[%clk 0:02:53.2]} 3. d4 {[%clk 0:03:03.8]} 3... cxd4 {[%clk 0:02:55.1]}
4. Nxd4 {[%clk 0:03:05.4]} 4... Nf6 {[%clk 0:02:56.5]} 5. Nc3 {[%clk 0:03:06.8]}
5... a6 {[%clk 0:02:58]} 6. Be3 {[%clk 0:03:08.4]} 6... Ng4 {[%clk 0:02:57.6]}
7. Bg5 {[%clk 0:03:07.8]} 7... h6 {[%clk 0:02:57.9]} 8. Bh4 {[%clk 0:03:09.3]}
8... g5 {[%clk 0:02:59]} 9. Bg3 {[%clk 0:03:10.5]} 9... Bg7 {[%clk 0:02:58.5]}
10. h3 {[%clk 0:03:11.7]} 10... Ne5 {[%clk 0:02:57]} 11. Be2 {[%clk 0:03:13.1]}
11... Nbc6 {[%clk 0:02:57.2]} 12. Nb3 {[%clk 0:03:14.2]} 12... Be6 {[%clk
0:02:44.1]} 13. Nd5 {[%clk 0:03:15.5]} 13... Ng6 {[%clk 0:02:31.5]} 14. c3
{[%clk 0:03:16.2]} 14... Nce5 {[%clk 0:01:20.1]} 15. O-O {[%clk 0:03:16.5]}
15... Bxd5 {[%clk 0:00:48.6]} 16. exd5 {[%clk 0:03:17.1]} 16... Qb6 {[%clk
0:00:41.9]} 17. Qd2 {[%clk 0:03:02.9]} 17... O-O-O {[%clk 0:00:21]} 18. Nd4
{[%clk 0:02:49.5]} 18... Kb8 {[%clk 0:00:21.5]} 19. a4 {[%clk 0:02:33.5]} 19...
h5 {[%clk 0:00:16.3]} 20. Qxg5 {[%clk 0:02:27.2]} 20... h4 {[%clk 0:00:16.1]}
21. Bh2 {[%clk 0:02:27.7]} 21... Bf6 {[%clk 0:00:15.1]} 22. Qe3 {[%clk
0:02:27.6]} 22... Qc7 {[%clk 0:00:08.4]} 23. b3 {[%clk 0:01:58.9]} 23... Rdg8
{[%clk 0:00:05.2]} 24. a5 {[%clk 0:01:31.2]} 24... Nd7 {[%clk 0:00:06]} 25. b4
{[%clk 0:01:23]} 25... Nge5 {[%clk 0:00:06.9]} 26. b5 {[%clk 0:01:14.8]} 26...
axb5 {[%clk 0:00:05.9]} 27. Nxb5 {[%clk 0:01:13.5]} 27... Qc5 {[%clk 0:00:07]}
28. Qd2 {[%clk 0:00:54.3]} 28... Rg6 {[%clk 0:00:06.2]} 29. a6 {[%clk
0:00:34.4]} 29... Rhg8 {[%clk 0:00:06.9]} 30. Bg4 {[%clk 0:00:18.5]} 30... Nxg4
{[%clk 0:00:06.5]} 31. hxg4 {[%clk 0:00:19.9]} 31... Rxg4 {[%clk 0:00:07.8]} 32.
Kh1 {[%clk 0:00:19.8]} 32... Rxg2 {[%clk 0:00:08.6]} 33. axb7 {[%clk 0:00:18.3]}
33... Kxb7 {[%clk 0:00:08.4]} 34. Ra7+ {[%clk 0:00:18.2]} 34... Kc8 {[%clk
0:00:06.8]} 35. Rc7+ {[%clk 0:00:18.8]} 35... Qxc7 {[%clk 0:00:06.9]} 36. Nxc7
{[%clk 0:00:20.7]} 36... Kxc7 {[%clk 0:00:08.4]} 37. Ra1 {[%clk 0:00:20.8]}
37... Nc5 {[%clk 0:00:08.4]} 38. Qb2 {[%clk 0:00:20.8]} 38... h3 {[%clk
0:00:04.8]} 39. Ra7+ {[%clk 0:00:21.9]} 39... Kc8 {[%clk 0:00:03]} 40. Ra8+
{[%clk 0:00:21.9]} 40... Kc7 {[%clk 0:00:03.9]} 41. Ra7+ {[%clk 0:00:23.1]}
41... Kc8 {[%clk 0:00:04.7]} 42. Qb6 {[%clk 0:00:22.9]} 42... Ne6 {[%clk
0:00:02.2]} 43. Qb7+ {[%clk 0:00:21.1]} 43... Kd8 {[%clk 0:00:03]} 44. Qd7#
{[%clk 0:00:22.1]} 1-0

[Event "*** Titled Tuesday Blitz"]
[Site "Chess.com"]
[Date "2018.08.07"]
[Round "2"]
[White "eljanov"]
[Black "pKiLz5Rn9b"]
[Result "1-0"]
[WhiteElo "2663"]
[BlackElo "2706"]
[TimeControl "180+2"]
[EndTime "13:21:43 PDT"]
[Termination "eljanov won by resignation"]

1. d4 {[%clk 0:03:01.9]} 1... Nf6 {[%clk 0:03:00]} 2. Nf3 {[%clk 0:03:02.1]}
2... e6 {[%clk 0:03:00.3]} 3. c4 {[%clk 0:03:01.8]} 3... d5 {[%clk 0:03:01.3]}
4. g3 {[%clk 0:03:02.5]} 4... Bb4+ {[%clk 0:02:48.3]} 5. Bd2 {[%clk 0:03:03.2]}
5... Be7 {[%clk 0:02:48.9]} 6. Bg2 {[%clk 0:03:04]} 6... O-O {[%clk 0:02:50.5]}
7. O-O {[%clk 0:03:04.9]} 7... c6 {[%clk 0:02:51.9]} 8. Qc2 {[%clk 0:03:05]}
8... Ne4 {[%clk 0:02:40.8]} 9. Bf4 {[%clk 0:02:59.9]} 9... g5 {[%clk 0:02:31.4]}
10. Be3 {[%clk 0:02:51.3]} 10... Nd6 {[%clk 0:02:24.7]} 11. b3 {[%clk 0:02:38]}
11... b5 {[%clk 0:02:24.4]} 12. c5 {[%clk 0:02:33.5]} 12... Nf5 {[%clk
0:02:19.3]} 13. Bc1 {[%clk 0:02:33.8]} 13... g4 {[%clk 0:02:16.4]} 14. Ne5
{[%clk 0:02:30.7]} 14... Nxd4 {[%clk 0:02:10.2]} 15. Qd1 {[%clk 0:02:29.7]}
15... Nf5 {[%clk 0:01:26.4]} 16. Nxg4 {[%clk 0:02:30.3]} 16... Bxc5 {[%clk
0:01:14.8]} 17. Bb2 {[%clk 0:01:55]} 17... f6 {[%clk 0:01:09.7]} 18. e4 {[%clk
0:01:52]} 18... Ng7 {[%clk 0:00:46.8]} 19. Nd2 {[%clk 0:01:38.7]} 19... e5
{[%clk 0:00:28.3]} 20. exd5 {[%clk 0:01:30.4]} 20... cxd5 {[%clk 0:00:27.5]} 21.
Rc1 {[%clk 0:01:23]} 21... Na6 {[%clk 0:00:16.7]} 22. Nb1 {[%clk 0:00:43.6]}
22... Be6 {[%clk 0:00:13.3]} 23. Nc3 {[%clk 0:00:43.2]} 23... d4 {[%clk
0:00:09.7]} 24. Nxb5 {[%clk 0:00:32.3]} 24... Rb8 {[%clk 0:00:10.2]} 25. a4
{[%clk 0:00:26.5]} 25... h5 {[%clk 0:00:09.8]} 26. Nh6+ {[%clk 0:00:27.6]} 26...
Kh7 {[%clk 0:00:10.7]} 27. Rxc5 {[%clk 0:00:28.5]} 27... Nxc5 {[%clk 0:00:09.5]}
28. Qc2+ {[%clk 0:00:29.6]} 28... f5 {[%clk 0:00:06.8]} 29. Qxc5 {[%clk
0:00:28.1]} 29... Kxh6 {[%clk 0:00:07.9]} 30. Qxe5 {[%clk 0:00:29.3]} 30... Qf6
{[%clk 0:00:07.2]} 31. Qf4+ {[%clk 0:00:27.9]} 31... Qg5 {[%clk 0:00:06.5]} 32.
Qxd4 {[%clk 0:00:25.8]} 32... Kh7 {[%clk 0:00:05.5]} 33. Re1 {[%clk 0:00:24.3]}
33... Bg8 {[%clk 0:00:03]} 34. b4 {[%clk 0:00:21.8]} 34... a6 {[%clk 0:00:03.7]}
35. Nd6 {[%clk 0:00:21.6]} 35... Rbd8 {[%clk 0:00:05.1]} 36. h4 {[%clk
0:00:18.2]} 36... Qg6 {[%clk 0:00:06.4]} 37. Re7 {[%clk 0:00:19.1]} 37... Rf7
{[%clk 0:00:05.5]} 38. Nxf7 {[%clk 0:00:18.8]} 38... Rxd4 {[%clk 0:00:03.9]} 39.
Ng5+ {[%clk 0:00:19.9]} 39... Kh6 {[%clk 0:00:05.2]} 40. Bxd4 {[%clk 0:00:21]}
40... Ne6 {[%clk 0:00:06.6]} 41. Nxe6 {[%clk 0:00:21.9]} 41... Bxe6 {[%clk
0:00:08.5]} 42. Be3+ {[%clk 0:00:23]} 42... f4 {[%clk 0:00:04.7]} 43. Bxf4+
{[%clk 0:00:23.9]} 1-0

[Event "*** Titled Tuesday Blitz"]
[Site "Chess.com"]
[Date "2018.08.07"]
[Round "2"]
[White "m3alam"]
[Black "chess4life23"]
[Result "1-0"]
[WhiteElo "2178"]
[BlackElo "2277"]
[TimeControl "180+2"]
[EndTime "13:21:53 PDT"]
[Termination "m3alam won by resignation"]

1. d4 {[%clk 0:02:59.9]} 1... Nf6 {[%clk 0:02:57.1]} 2. Nf3 {[%clk 0:03:00.5]}
2... g6 {[%clk 0:02:54.6]} 3. g3 {[%clk 0:03:01.1]} 3... Bg7 {[%clk 0:02:55.4]}
4. Bg2 {[%clk 0:03:02.2]} 4... O-O {[%clk 0:02:56.6]} 5. O-O {[%clk 0:03:03.2]}
5... d6 {[%clk 0:02:50.2]} 6. c4 {[%clk 0:03:04.1]} 6... Nbd7 {[%clk 0:02:49.7]}
7. Nc3 {[%clk 0:03:04.6]} 7... c5 {[%clk 0:02:50.1]} 8. d5 {[%clk 0:02:53.5]}
8... a6 {[%clk 0:02:49.3]} 9. h3 {[%clk 0:02:53.8]} 9... b5 {[%clk 0:02:46.5]}
10. cxb5 {[%clk 0:02:53.1]} 10... axb5 {[%clk 0:02:48.4]} 11. Nxb5 {[%clk
0:02:53.1]} 11... Ba6 {[%clk 0:02:48.5]} 12. Nc3 {[%clk 0:02:41.5]} 12... Nb6
{[%clk 0:02:45.7]} 13. Re1 {[%clk 0:02:38.8]} 13... Ne8 {[%clk 0:02:23.3]} 14.
e4 {[%clk 0:02:26.7]} 14... Nc4 {[%clk 0:02:10.7]} 15. Qc2 {[%clk 0:02:13.8]}
15... Qa5 {[%clk 0:01:49.1]} 16. Rb1 {[%clk 0:02:02.8]} 16... Na3 {[%clk
0:01:28.9]} 17. bxa3 {[%clk 0:01:54.4]} 17... Bxc3 {[%clk 0:01:29.4]} 18. Re3
{[%clk 0:01:45.5]} 18... Bg7 {[%clk 0:01:24]} 19. Bd2 {[%clk 0:01:37.1]} 19...
Qd8 {[%clk 0:01:02.3]} 20. Bc3 {[%clk 0:01:33.6]} 20... Nc7 {[%clk 0:00:57.1]}
21. Bxg7 {[%clk 0:01:33.6]} 21... Kxg7 {[%clk 0:00:59]} 22. Reb3 {[%clk
0:01:23.9]} 22... Qd7 {[%clk 0:00:53.6]} 23. Nd2 {[%clk 0:01:19.6]} 23... Nb5
{[%clk 0:00:49.4]} 24. Rxb5 {[%clk 0:01:11.9]} 24... Bxb5 {[%clk 0:00:48.3]} 25.
Qb2+ {[%clk 0:01:13]} 25... f6 {[%clk 0:00:44.8]} 26. Qxb5 {[%clk 0:01:14.1]}
26... Qxb5 {[%clk 0:00:45.1]} 27. Rxb5 {[%clk 0:01:14.5]} 27... Rxa3 {[%clk
0:00:47]} 28. Rb7 {[%clk 0:01:05.7]} 28... Rf7 {[%clk 0:00:28.2]} 29. Nc4 {[%clk
0:01:05.5]} 29... Rxa2 {[%clk 0:00:25.1]} 30. Bf1 {[%clk 0:01:00.9]} 30... Rc2
{[%clk 0:00:18.1]} 31. g4 {[%clk 0:00:52.7]} 31... f5 {[%clk 0:00:17.6]} 32. e5
{[%clk 0:00:49]} 32... fxg4 {[%clk 0:00:17.5]} 33. e6 {[%clk 0:00:48.6]} 33...
Rfxf2 {[%clk 0:00:15.1]} 34. Rxe7+ {[%clk 0:00:48.8]} 34... Kh6 {[%clk
0:00:16.4]} 35. Rf7 {[%clk 0:00:39.7]} 35... Rxf1+ {[%clk 0:00:09.2]} 36. Kxf1
{[%clk 0:00:34.2]} 36... Rxc4 {[%clk 0:00:10.4]} 37. h4 {[%clk 0:00:30.5]} 37...
Rd4 {[%clk 0:00:10]} 38. e7 {[%clk 0:00:29.1]} 38... Re4 {[%clk 0:00:11.4]} 39.
Kf2 {[%clk 0:00:30.6]} 39... g5 {[%clk 0:00:11.7]} 40. Rf6+ {[%clk 0:00:28.9]}
40... Kh5 {[%clk 0:00:09.2]} 41. Re6 {[%clk 0:00:30.6]} 41... Rf4+ {[%clk
0:00:08.2]} 42. Ke2 {[%clk 0:00:30.2]} 1-0

[Event "*** Titled Tuesday Blitz"]
[Site "Chess.com"]
[Date "2018.08.07"]
[Round "2"]
[White "thegreendog"]
[Black "krzysztofszczurek"]
[Result "0-1"]
[WhiteElo "2320"]
[BlackElo "2403"]
[TimeControl "180+2"]
[EndTime "13:21:53 PDT"]
[Termination "krzysztofszczurek won by resignation"]

1. e4 {[%clk 0:03:01.9]} 1... c5 {[%clk 0:03:00.1]} 2. Nf3 {[%clk 0:03:01.7]}
2... d6 {[%clk 0:03:00.5]} 3. d4 {[%clk 0:03:02.7]} 3... cxd4 {[%clk 0:03:01.4]}
4. Nxd4 {[%clk 0:03:04.4]} 4... Nf6 {[%clk 0:03:02.6]} 5. Nc3 {[%clk 0:03:05.9]}
5... a6 {[%clk 0:03:03.3]} 6. h3 {[%clk 0:03:05.9]} 6... g6 {[%clk 0:02:56.3]}
7. g4 {[%clk 0:03:06]} 7... Bg7 {[%clk 0:02:53.6]} 8. Be3 {[%clk 0:03:07]} 8...
Nc6 {[%clk 0:02:45]} 9. Bg2 {[%clk 0:03:07.5]} 9... Bd7 {[%clk 0:02:40]} 10. a4
{[%clk 0:03:07.6]} 10... Rc8 {[%clk 0:02:28.9]} 11. O-O {[%clk 0:03:08]} 11...
O-O {[%clk 0:02:23.3]} 12. Nd5 {[%clk 0:02:55.4]} 12... Ne5 {[%clk 0:02:11.4]}
13. b3 {[%clk 0:02:53.2]} 13... Nc6 {[%clk 0:01:44.3]} 14. c4 {[%clk 0:02:44.3]}
14... e6 {[%clk 0:01:20.1]} 15. Nxf6+ {[%clk 0:02:30.7]} 15... Bxf6 {[%clk
0:01:17.4]} 16. Rc1 {[%clk 0:02:29.1]} 16... Qe7 {[%clk 0:01:14]} 17. Qd2 {[%clk
0:02:24.4]} 17... Rfd8 {[%clk 0:01:11.8]} 18. Rfd1 {[%clk 0:02:22.5]} 18... Nxd4
{[%clk 0:00:53.3]} 19. Bxd4 {[%clk 0:02:23.2]} 19... Bc6 {[%clk 0:00:54.8]} 20.
a5 {[%clk 0:02:03.8]} 20... Bxd4 {[%clk 0:00:52.6]} 21. Qxd4 {[%clk 0:02:04.4]}
21... Qg5 {[%clk 0:00:53.5]} 22. Rd3 {[%clk 0:01:56.7]} 22... Qxa5 {[%clk
0:00:51.4]} 23. Rcd1 {[%clk 0:01:51.9]} 23... Qg5 {[%clk 0:00:49.2]} 24. Qb6
{[%clk 0:01:29.7]} 24... Qe7 {[%clk 0:00:32.1]} 25. e5 {[%clk 0:01:17.6]} 25...
d5 {[%clk 0:00:25.9]} 26. cxd5 {[%clk 0:01:08.5]} 26... exd5 {[%clk 0:00:25.4]}
27. Bxd5 {[%clk 0:01:02.8]} 27... Bxd5 {[%clk 0:00:23.9]} 28. Rxd5 {[%clk
0:01:03.7]} 28... Rxd5 {[%clk 0:00:24.3]} 29. Rxd5 {[%clk 0:01:04]} 29... Re8
{[%clk 0:00:16.6]} 30. f4 {[%clk 0:00:54.9]} 30... Qh4 {[%clk 0:00:16]} 31. Qf2
{[%clk 0:00:50.9]} 31... Qxh3 {[%clk 0:00:15.9]} 32. Qg2 {[%clk 0:00:33.3]}
32... Qxb3 {[%clk 0:00:15.7]} 33. Rd7 {[%clk 0:00:32.6]} 33... b5 {[%clk
0:00:08.9]} 34. Kh2 {[%clk 0:00:23.4]} 34... a5 {[%clk 0:00:07.8]} 35. Qd2
{[%clk 0:00:17.7]} 35... Qb4 {[%clk 0:00:05.6]} 36. Qd5 {[%clk 0:00:15.6]} 36...
Qxf4+ {[%clk 0:00:06]} 37. Kg2 {[%clk 0:00:16.1]} 37... Qxg4+ {[%clk 0:00:06.6]}
38. Kh2 {[%clk 0:00:16.9]} 38... Qe6 {[%clk 0:00:07]} 39. Qxb5 {[%clk
0:00:14.4]} 39... Qxe5+ {[%clk 0:00:07.8]} 40. Qxe5 {[%clk 0:00:16.3]} 40...
Rxe5 {[%clk 0:00:08.4]} 41. Rd8+ {[%clk 0:00:18.2]} 41... Kg7 {[%clk 0:00:09.5]}
42. Kg3 {[%clk 0:00:19.8]} 42... h5 {[%clk 0:00:10.2]} 43. Kf4 {[%clk
0:00:21.2]} 43... Rf5+ {[%clk 0:00:10.7]} 44. Ke4 {[%clk 0:00:22.7]} 44... Kh6
{[%clk 0:00:11.1]} 45. Ra8 {[%clk 0:00:24.6]} 45... Kg5 {[%clk 0:00:11.7]} 46.
Rh8 {[%clk 0:00:24.9]} 46... h4 {[%clk 0:00:12.5]} 47. Ke3 {[%clk 0:00:26.5]}
47... Kg4 {[%clk 0:00:13.4]} 48. Rb8 {[%clk 0:00:25.7]} 48... Kg3 {[%clk
0:00:11.3]} 49. Rh8 {[%clk 0:00:25.4]} 49... h3 {[%clk 0:00:11.8]} 50. Ke4
{[%clk 0:00:25.8]} 50... h2 {[%clk 0:00:12.1]} 0-1

[Event "*** Titled Tuesday Blitz"]
[Site "Chess.com"]
[Date "2018.08.07"]
[Round "2"]
[White "gmjlh"]
[Black "josiwales"]
[Result "1/2-1/2"]
[WhiteElo "2761"]
[BlackElo "2515"]
[TimeControl "180+2"]
[EndTime "13:22:01 PDT"]
[Termination "Game drawn by repetition"]

1. d4 {[%clk 0:03:01.9]} 1... d5 {[%clk 0:03:00.9]} 2. c4 {[%clk 0:03:02.8]}
2... c6 {[%clk 0:03:02.1]} 3. Nf3 {[%clk 0:03:04.1]} 3... Nf6 {[%clk 0:03:03.4]}
4. e3 {[%clk 0:03:05.6]} 4... Bf5 {[%clk 0:03:04]} 5. Nc3 {[%clk 0:03:06.4]}
5... e6 {[%clk 0:03:05.5]} 6. Nh4 {[%clk 0:03:07.5]} 6... Be4 {[%clk 0:03:06.7]}
7. f3 {[%clk 0:03:08.6]} 7... Bg6 {[%clk 0:03:06.8]} 8. Qb3 {[%clk 0:03:09.3]}
8... Qc7 {[%clk 0:03:05]} 9. Bd2 {[%clk 0:03:08.6]} 9... Be7 {[%clk 0:03:05.5]}
10. Rc1 {[%clk 0:03:08.4]} 10... Nbd7 {[%clk 0:03:04.1]} 11. cxd5 {[%clk
0:03:06.8]} 11... exd5 {[%clk 0:03:05.2]} 12. Nxg6 {[%clk 0:02:44.9]} 12... hxg6
{[%clk 0:03:03.9]} 13. Nxd5 {[%clk 0:02:39.5]} 13... Nxd5 {[%clk 0:02:56.8]} 14.
Qxd5 {[%clk 0:02:40.2]} 14... Rxh2 {[%clk 0:02:56.3]} 15. Rxh2 {[%clk
0:02:41.2]} 15... Qg3+ {[%clk 0:02:56.7]} 16. Kd1 {[%clk 0:02:27.9]} 16... cxd5
{[%clk 0:02:54.8]} 17. Rh8+ {[%clk 0:02:29]} 17... Bf8 {[%clk 0:02:44.5]} 18.
Bb4 {[%clk 0:02:14.8]} 18... a6 {[%clk 0:02:28.7]} 19. Rc2 {[%clk 0:02:07.5]}
19... Qg5 {[%clk 0:02:17.7]} 20. g4 {[%clk 0:01:39.1]} 20... Qf6 {[%clk
0:02:13.1]} 21. f4 {[%clk 0:01:22.3]} 21... Qb6 {[%clk 0:02:08.5]} 22. Ba3
{[%clk 0:01:21.5]} 22... Qe6 {[%clk 0:01:40]} 23. g5 {[%clk 0:01:18.9]} 23...
Qe4 {[%clk 0:01:34.7]} 24. Bh3 {[%clk 0:01:09.1]} 24... Qd3+ {[%clk 0:01:06.3]}
25. Rd2 {[%clk 0:01:02.7]} 25... Qb1+ {[%clk 0:01:07.2]} 26. Ke2 {[%clk
0:01:04.1]} 26... b5 {[%clk 0:00:46.7]} 27. b3 {[%clk 0:00:48.2]} 27... a5
{[%clk 0:00:43.9]} 28. Bxd7+ {[%clk 0:00:40.3]} 28... Kxd7 {[%clk 0:00:45.8]}
29. Rxf8 {[%clk 0:00:41.4]} 29... Rxf8 {[%clk 0:00:44.8]} 30. Bxf8 {[%clk
0:00:43.3]} 30... Ke6 {[%clk 0:00:42]} 31. Bxg7 {[%clk 0:00:37.5]} 31... Kf5
{[%clk 0:00:42.9]} 32. Be5 {[%clk 0:00:34.3]} 32... Ke4 {[%clk 0:00:43.7]} 33.
Bc7 {[%clk 0:00:35]} 33... a4 {[%clk 0:00:42]} 34. bxa4 {[%clk 0:00:35.5]} 34...
bxa4 {[%clk 0:00:43.9]} 35. Bd6 {[%clk 0:00:34.7]} 35... Qg1 {[%clk 0:00:41.6]}
36. a3 {[%clk 0:00:33.7]} 36... Qb1 {[%clk 0:00:34.4]} 37. Kf2 {[%clk
0:00:29.5]} 37... Qb3 {[%clk 0:00:32.9]} 38. Re2 {[%clk 0:00:28.5]} 38... Kd3
{[%clk 0:00:32.8]} 39. Bb4 {[%clk 0:00:29.4]} 39... Qb1 {[%clk 0:00:27.1]} 40.
e4 {[%clk 0:00:16]} 40... dxe4 {[%clk 0:00:25.3]} 41. d5 {[%clk 0:00:17.3]}
41... Qc1 {[%clk 0:00:23.3]} 42. Rd2+ {[%clk 0:00:18.2]} 42... Kc4 {[%clk
0:00:17.2]} 43. d6 {[%clk 0:00:19.1]} 43... Qh1 {[%clk 0:00:16.1]} 44. d7 {[%clk
0:00:18.6]} 44... Qf3+ {[%clk 0:00:16]} 45. Ke1 {[%clk 0:00:16.8]} 45... Qh1+
{[%clk 0:00:17.1]} 46. Kf2 {[%clk 0:00:13.7]} 46... Qf3+ {[%clk 0:00:16.4]} 47.
Kg1 {[%clk 0:00:14.9]} 47... Qg3+ {[%clk 0:00:16.3]} 48. Kf1 {[%clk 0:00:11.8]}
48... Qf3+ {[%clk 0:00:15.3]} 49. Ke1 {[%clk 0:00:12]} 49... Qh1+ {[%clk
0:00:16.3]} 50. Kf2 {[%clk 0:00:13.1]} 50... Qf3+ {[%clk 0:00:16.8]} 1/2-1/2